Cogmind - Beta 13 @@@ ROGUE MODE // 2024.05.18 @ 14:43:59 Player: H3-RMN Result: Destroyed by Y-45 Defender with Heavy Assault Rifle Performance ------------- Evolutions (2) 1000 Regions Visited (6) 1200 Robots Destroyed (92) 460 Value Destroyed (2679) 2679 Prototype IDs (46) 920 Alien Tech Used (0) 0 Bonus (577) 577 TOTAL SCORE: 6836 Bonus ------- High Alert Combat Kills 56 Follower Combat Kills 21 Entered Garrisons 200 Aligned with FarCom 300 Cogmind --------- Core Integrity 0/550 Matter 75/300 Energy 290/290 System Corruption 0% Temperature Warm (171) Movement Treading (326) Ox2 Location -8/Garrison Parts ------- > --- POWER (1) -------- Reinforced Deuterium Engine > --- PROPULSION (4) --- Light Treads Armored Treads Armored Treads > --- UTILITY (4) ------ Huge Storage Unit Heavy Armor Plating > --- WEAPON (2) ------- Heavy Assault Cannon > --- INVENTORY (25) --- Backup Power I Large Storage Unit Compact Matter Pod (150) Modified TNC Transmission Jammer Improved Utility Shielding Improved Utility Shielding Hacking Suite Long-range Tractor Beam Ion Cannon Ion Cannon Ion Cannon Enhanced Autogun Enhanced Autogun Enhanced Autogun Enhanced Autogun XL Autogun Array Mini Grenade Launcher Mini Grenade Launcher Datajack Field Lobotomy Kit (5) Katana Peak State ------------ > --- POWER ------------ Reinforced Deuterium Engine > --- PROPULSION ------- Armored Treads Armored Treads Wheel Wheel > --- UTILITY ---------- Disposable Heat Sink Huge Storage Unit Hardened Heavy Armor Plating > --- WEAPON ----------- Enhanced Autogun Enhanced Autogun > --- INVENTORY -------- Backup Power I Light Treads Large Storage Unit Compact Matter Pod Modified TNC Transmission Jammer Improved Utility Shielding Improved Utility Shielding Hacking Suite Long-range Tractor Beam Enhanced Autogun Enhanced Autogun XL Autogun Array Improved Light Cannon Improved Light Cannon Heavy Assault Cannon Mini Grenade Launcher Mini Grenade Launcher Datajack Field Lobotomy Kit Katana [Rating: 41] Favorites ----------- Power Light Ion Engine Engine Light Ion Engine Propulsion Wheel Treads Light Treads Leg Improved Aluminum Leg Wheel Wheel Flight Unit Improved Flight Unit Utility Huge Storage Unit Device Disposable Heat Sink Storage Huge Storage Unit Processor Advanced Targeting Computer Hackware Hacking Suite Protection Hardened Heavy Armor Plating Weapon Light Cannon Energy Gun Medium Laser Energy Cannon EM Pulse Cannon Ballistic Gun Light Assault Rifle Ballistic Cannon Light Cannon Launcher Rocket Launcher Special Weapon Field Lobotomy Kit Special Melee Weapon Datajack Build | -11 -10 -10 -10 -9 -8 -8 ------- Run | Yrd Mat Min Exi Min Mat Gar Slots Evolved 4 | . . . . . 4 . Power . | . . . . . . . Propulsion 2 | . . . . . 2 . Utility 2 | . . . . . 2 . Weapon . | . . . . . . . Parts Attached 94 | 10 20 3 5 9 42 5 Power 9 | 1 2 2 . . 4 . Engine 9 | 1 2 2 . . 4 . Core . | . . . . . . . Reactor . | . . . . . . . Propulsion 34 | 4 7 1 . 5 16 1 Treads 10 | 1 2 . . 1 5 1 Leg 4 | . . . . . 4 . Wheel 19 | 3 4 1 . 4 7 . Hover . | . . . . . . . Flight 1 | . 1 . . . . . Utility 23 | 3 5 . 1 3 10 1 Device 11 | 2 2 . 1 1 5 . Storage 5 | 1 2 . . 1 1 . Processor 1 | . . . . . 1 . Hackware 1 | . . . . . 1 . Protection 5 | . 1 . . 1 2 1 Artifact . | . . . . . . . Weapon 28 | 2 6 . 4 1 12 3 Energy Gun 5 | . 1 . . . 4 . Energy Cannon 1 | . . . . . 1 . Ballistic Gun 9 | 2 3 . . . 4 . Ballistic Cannon 9 | . 2 . 2 . 3 2 Launcher 2 | . . . . 1 . 1 Special Weapon 1 | . . . 1 . . . Impact Weapon . | . . . . . . . Slashing Weapon . | . . . . . . . Piercing Weapon . | . . . . . . . Special Melee Weapon 1 | . . . 1 . . . Unidentified Prototypes 3 | . 1 . . . 2 . Corrupted Parts 1 | . . 1 . . . . System Corruption 7 | . . 7 . . . . Parts Lost 35 | . 5 1 . 4 22 3 Power 4 | . . 1 . . 3 . Propulsion 17 | . 2 . . 3 10 2 Utility 7 | . 1 . . 1 4 1 Weapon 7 | . 2 . . . 5 . Highest Loss Streak 11 | . 2 1 . 3 11 3 To Critical Strikes . | . . . . . . . Average Slot Usage (%) 89 | . 98 99 84 97 87 75 Engine 11 | . 14 13 14 14 8 9 Treads 14 | . 14 14 14 13 8 23 Leg 2 | . . . . . 7 . Wheel 12 | . 13 14 14 13 15 6 Device 9 | . 4 14 13 10 11 9 Storage 11 | . 14 14 14 14 9 9 Hackware 1 | . . . . . 3 . Protection 5 | . 8 . . 2 4 9 Energy Gun 1 | . 2 . . . 3 . Ballistic Gun 7 | . 23 . . . 7 . Ballistic Cannon 8 | . 1 28 . 26 5 8 Special Melee Weapon 1 | . . . 13 . . . Naked Turns . | . . . . . . . Heaviest Build 128 | 11 54 54 50 91 122 128 Greatest Support 60 | 32 40 10 10 26 52 60 Greatest Overweight (x) 30 | 1 5 5 4 9 30 12 Average Overweight (x) 3 | . 3 4 4 4 3 4 Largest Inventory Capacity 25 | 8 20 20 20 25 25 25 Average Capacity 21 | 7 15 20 20 21 25 25 Most Carried 25 | 8 20 20 20 23 25 25 Average Carried 20 | 3 13 19 19 20 23 24 Final Capacity 25 | 8 20 20 20 25 25 25 Final Carried 25 | 8 20 20 19 20 25 25 Class Distribution -------------------- 49% | Mutant 39% | Scavenger-Mutant 8% | Scavenger-Skirmisher Dominant Class ---------------- Mutant | -10/Materials Mutant | -10/Mines Scavenger-Mutant | -10/Exiles Mutant | -9/Mines Scavenger-Mutant | -8/Materials Scavenger-Mutant | -8/Garrison Resources | -11 -10 -10 -10 -9 -8 -8 ----------- Run | Yrd Mat Min Exi Min Mat Gar Matter Collected 3042 | 326 472 105 87 322 1396 334 Remotely 602 | 199 . . . 20 383 . Salvage Created 3174 | 139 893 82 . 260 1407 393 Parts 218 | 9 68 10 . 22 89 20 Haulers Intercepted 7 | . 2 . . . 5 . Recyclers Shooed 4 | . . . . 1 3 . Parts Field Recycled . | . . . . . . . Retrieved Matter . | . . . . . . . Parts Self-Destructed . | . . . . . . . Prevented . | . . . . . . . Kills | -11 -10 -10 -10 -9 -8 -8 ------- Run | Yrd Mat Min Exi Min Mat Gar Combat Hostiles Destroyed 68 | . 20 2 . 11 21 14 Guns 33 | . 19 . . . 12 2 Cannons 19 | . . 2 . 4 8 5 AOE 16 | . 1 . . 7 1 7 Classes Destroyed 15 | 2 5 1 . 3 4 . Worker 6 | . . 1 . 1 4 . Builder 1 | . . . . 1 . . Tunneler 5 | 2 1 . . 1 1 . Hauler 7 | . 2 . . . 5 . Recycler 5 | 1 . 1 . 1 2 . Operator 2 | . 1 . . . 1 . Watcher 3 | . 1 . . . 2 . Swarmer 7 | . 3 2 . . . 2 Grunt 45 | . 17 . . 5 14 9 Brawler 1 | . . . . . 1 . Duelist 1 | . . . . 1 . . Sentry 6 | . . . . . 3 3 Hunter 2 | . . . . . 2 . Heavy 1 | . . . . . 1 . Assembled 5 | . . . . 5 . . Best Kill Streak 9 | 2 5 3 . 8 9 7 Combat Bots Only 8 | . 5 2 . 7 8 7 Max Kills in Single Turn 3 | 1 1 2 . 3 2 1 Gunslinging 1 | . . . . . 1 . Exploded 3 | . 1 . . 3 1 1 Melee . | . . . . . . . Uniques/NPCs Destroyed . | . . . . . . . Combat | -11 -10 -10 -10 -9 -8 -8 -------- Run | Yrd Mat Min Exi Min Mat Gar Hostile Shots Fired 473 | . 116 21 . 53 170 113 Missed 128 | . 37 5 . 13 47 26 Damage Taken 5168 | . 885 128 . 550 2298 1307 Core 797 | . 154 23 . 66 483 71 Absorbed by Shields 72 | . . . . . . 72 Redirected to Shielding 41 | . . . . . 41 . Regen/Repaired (Parts) 46 | . . . . . 46 . Core Remaining (%) 51 | 100 . . . 2 . . Volleys Fired 347 | 13 106 10 . 27 130 61 Largest 2 | 2 2 2 . 2 2 2 Hottest 89 | 40 60 70 . 70 89 60 Shots Fired 623 | 26 204 20 . 47 252 74 Gun 425 | 26 204 . . . 169 26 Cannon 172 | . . 20 . 39 83 30 Launcher 26 | . . . . 8 . 18 Special . | . . . . . . . Kinetic 537 | 26 194 20 . 39 202 56 Thermal 41 | . . . . . 41 . Explosive 26 | . . . . 8 . 18 Electromagnetic 19 | . 10 . . . 9 . Robot Hit Streak 18 | 10 11 5 . 7 18 10 Robot Miss Streak 5 | 1 4 4 . 5 5 5 Penetration Max . | . . . . . . . Secondary Targets 8 | . 4 . . . 3 1 Max Gunslinging Chain 1 | . 1 . . . 1 1 Shots Hit Robots 393 | 21 129 9 4 24 170 36 Core Hits 180 | 7 49 4 . 23 72 25 Critical Kills 1 | 1 . . . . . . Critical Parts Destroyed 2 | . 1 . . . 1 . Critical Strikes 17 | 1 1 1 . 3 8 3 Burn 4 | . . . . . 4 . Destroy 3 | 1 1 . . . 1 . Blast 10 | . . 1 . 3 3 3 Melee Attacks 4 | . . . 4 . . . Impact . | . . . . . . . Slashing . | . . . . . . . Piercing . | . . . . . . . Sneak Attacks 4 | . . . 4 . . . Combat Hostiles . | . . . . . . . Follow-up Attacks . | . . . . . . . Damage Inflicted 7540 | 163 1381 201 . 1010 3045 1740 Guns 3604 | 163 1346 . . . 1865 230 Cannons 2369 | . . 201 . 432 1092 644 Explosions 1567 | . 35 . . 578 88 866 Melee . | . . . . . . . Ramming . | . . . . . . . Kinetic 5270 | 163 1204 201 . 432 2396 874 Thermal 540 | . 35 . . . 505 . Explosive 1444 | . . . . 578 . 866 Electromagnetic 286 | . 142 . . . 144 . Impact . | . . . . . . . Slashing . | . . . . . . . Piercing . | . . . . . . . Highest Corruption 10 | . 3 10 10 10 . . Average Corruption 6 | . 1 4 10 10 . . Corruption Purged . | . . . . . . . Corruption Blocked . | . . . . . . . Effects 54 | . 7 7 20 20 . . Message Errors 12 | . 3 . 6 3 . . Matter Fused 14 | . 1 2 4 7 . . Heat Flow Errors 12 | . . 3 4 5 . . Energy Discharges 4 | . 1 1 1 1 . . Parts Rejected 1 | . 1 . . . . . Data Loss (minor) 7 | . 1 . 4 2 . . Data Loss (major) 2 | . . 1 1 . . . Misfires 1 | . . . . 1 . . Alerts 1 | . . . . 1 . . Overload Shots . | . . . . . . . Overflow Damage 94 | . . . . 14 32 48 Projectiles 48 | . . . . . 14 34 Explosions 46 | . . . . 14 18 14 Melee . | . . . . . . . Knockbacks 16 | . . 6 . 7 3 . Impact . | . . . . . . . Kinetic 15 | . . 5 . 7 3 . Secondary 1 | . . 1 . . . . Self-Inflicted Damage 278 | . . . . . 38 240 Shots 11 | . . . . . 1 10 Rammed . | . . . . . . . Targets Rammed . | . . . . . . . Kicked . | . . . . . . . Crushed . | . . . . . . . Highest Temperature 333 | . 116 231 251 304 333 197 Average Temperature 81 | . 24 86 99 126 96 90 Received Heat Transfer 2106 | . 471 . . 198 954 483 Effects 1 | . . . . . 1 . Matter Decay 1 | . . . . . 1 . Siege Activations . | . . . . . . . Robots Corrupted . | . . . . . . . Combat Hostiles . | . . . . . . . Parts Fried 1 | . 1 . . . . . Impact Corruptions 1 | . . 1 . . . . Robots Melted . | . . . . . . . Combat Hostiles . | . . . . . . . Parts Melted . | . . . . . . . Heat Transferred 1667 | . 50 . . . 1617 . Parts Sabotaged . | . . . . . . . Parts Stolen . | . . . . . . . Parts Stripped . | . . . . . . . Power Chain Reactions 2 | . 1 . . . 1 . Alert | -11 -10 -10 -10 -9 -8 -8 ------- Run | Yrd Mat Min Exi Min Mat Gar Peak Influence 528 | 15 273 227 . 110 250 528 Initial 128 | . 9 90 . . 37 128 Average 169 | 5 190 124 . 69 97 335 Maximum Alert Level 2 | . 1 1 . . 1 2 Low Security (%) 66 | 100 36 74 . 100 95 34 Level 1 23 | . 63 25 . . 4 21 Level 2 9 | . . . . . . 43 Level 3 . | . . . . . . . Level 4 . | . . . . . . . Level 5 . | . . . . . . . High Security . | . . . . . . . Max Security . | . . . . . . . Squads Dispatched 8 | . 5 . . . 3 . Investigation 4 | . 3 . . . 1 . Extermination . | . . . . . . . Reinforcement 4 | . 2 . . . 2 . Assault . | . . . . . . . Garrison . | . . . . . . . Intercept . | . . . . . . . Searches Triggered . | . . . . . . . Construction Impeded . | . . . . . . . Haulers Reinforced . | . . . . . . . Active Scanning Responses . | . . . . . . . Cargo Convoy Interrupts . | . . . . . . . Stealth | -11 -10 -10 -10 -9 -8 -8 --------- Run | Yrd Mat Min Exi Min Mat Gar Distress Signals 6 | . 3 . . . 3 . Communications Jammed . | . . . . . . . Distress Signals . | . . . . . . . Times Spotted 109 | . 31 6 . 23 34 15 Peak Tracking Total 15 | . 5 6 . 15 7 10 Tactical Retreats 4 | . . . . 2 . 2 Traps | -11 -10 -10 -10 -9 -8 -8 ------- Run | Yrd Mat Min Exi Min Mat Gar Traps Triggered 8 | . 3 . . . . 5 Indirectly . | . . . . . . . Trap Hack Attempts . | . . . . . . . Triggered . | . . . . . . . Disarmed . | . . . . . . . Reprogrammed . | . . . . . . . Reused . | . . . . . . . Traps Extracted . | . . . . . . . Installed 1 | . . 1 . . . . Triggered . | . . . . . . . Machines | -11 -10 -10 -10 -9 -8 -8 ---------- Run | Yrd Mat Min Exi Min Mat Gar Machines Disabled 2 | . . 1 . 1 . . Max in Single Turn 1 | . . 1 . 1 . . Machines Repaired . | . . . . . . . Machines Dismantled . | . . . . . . . Machines Sabotaged . | . . . . . . . Overloaded Fab Kills . | . . . . . . . Hacking | -11 -10 -10 -10 -9 -8 -8 --------- Run | Yrd Mat Min Exi Min Mat Gar Machines Accessed 18 | . 8 . 2 . 8 . Terminals 9 | . 6 . . . 3 . Fabricators . | . . . . . . . Repair Stations 2 | . 1 . . . 1 . Recycling Units 3 | . 1 . . . 2 . Scanalyzers 1 | . . . . . 1 . Garrison Access 1 | . . . . . 1 . Total Hacks 51 | . 26 . 5 . 20 . Successful 28 | . 13 . 5 . 10 . Failed 22 | . 12 . . . 10 . Catastrophic 4 | . 3 . . . 1 . Database Lockouts 1 | . 1 . . . . . Manual 21 | . 16 . 1 . 4 . Terminals 28 | . 21 . . . 7 . Fabricators . | . . . . . . . Repair Stations 7 | . 3 . . . 4 . Recycling Units 7 | . 2 . . . 5 . Scanalyzers 3 | . . . . . 3 . Garrison Access 1 | . . . . . 1 . Terminal Hacks 16 | . 9 . 5 . 2 . Record 4 | . . . 4 . . . Part Schematic 2 | . 2 . . . . . Robot Schematic 1 | . 1 . . . . . Robot Analysis 2 | . 2 . . . . . Prototype ID Bank 3 | . 2 . . . 1 . Branch Access Points 1 | . . . . . 1 . Locate Traps 1 | . 1 . . . . . Hauler Manifests 1 | . 1 . . . . . Derelict Proto ID Bank 1 | . . . 1 . . . Fabricator Hacks . | . . . . . . . Repair Station Hacks 3 | . 1 . . . 2 . Scan Component 1 | . . . . . 1 . Repair 1 | . . . . . 1 . Refit 1 | . 1 . . . . . Recycling Unit Hacks 4 | . 1 . . . 3 . Report Inventory 3 | . 1 . . . 2 . Retrieve Components 1 | . . . . . 1 . Scanalyzer . | . . . . . . . Garrison Access Hacks 1 | . . . . . 1 . Unlock Access 1 | . . . . . 1 . Unauthorized Hacks 4 | . 2 . . . 2 . Terminals 2 | . 1 . . . 1 . Botnet 2 | . 1 . . . 1 . Fabricators . | . . . . . . . Repair Stations . | . . . . . . . Recycling Units 2 | . 1 . . . 1 . Tunnel 2 | . 1 . . . 1 . Scanalyzers . | . . . . . . . Garrison Access . | . . . . . . . Data Cores Recovered . | . . . . . . . Used . | . . . . . . . Hacking Detections 13 | . 7 . . . 6 . Full Trace Events 3 | . 3 . . . . . Feedback Events . | . . . . . . . Feedback Blocked . | . . . . . . . Robot Schematics Acquired 1 | . 1 . . . . . Robots Built . | . . . . . . . Authchips . | . . . . . . . Time . | . . . . . . . Total Robot Build Rating . | . . . . . . . Part Schematics Acquired 2 | . 2 . . . . . Parts Built . | . . . . . . . Authchips . | . . . . . . . Time . | . . . . . . . Total Part Build Rating . | . . . . . . . Parts Repaired 1 | . . . . . 1 . Time 38 | . . . . . 38 . Parts Recycled . | . . . . . . . Recycled Matter . | . . . . . . . Retrieved Matter . | . . . . . . . Retrieved Components 3 | . . . . . 3 . Parts Scanalyzed . | . . . . . . . Part Schematics Acquired . | . . . . . . . Parts Damaged . | . . . . . . . Bothacking | -11 -10 -10 -10 -9 -8 -8 ------------ Run | Yrd Mat Min Exi Min Mat Gar Used RIF Installer . | . . . . . . . Robots Hacked 4 | . . . 4 . . . Non-combat 3 | . . . 3 . . . Combat 1 | . . . 1 . . . Robot Hacks Applied 4 | . . . 4 . . . parse_system 4 | . . . 4 . . . Relay Couplers Released . | . . . . . . . Fabnet Peak Effective % . | . . . . . . . Robots Rewired . | . . . . . . . Allies Hacked . | . . . . . . . Hacks Repelled . | . . . . . . . Allies | -11 -10 -10 -10 -9 -8 -8 -------- Run | Yrd Mat Min Exi Min Mat Gar Total Allies 2 | . . 2 . . . . Largest Group 2 | . . 2 2 . . . Highest-Rated Group 42 | . . 42 42 . . . Highest-Rated Ally 31 | . . 31 31 . . . Total Orders . | . . . . . . . Ally Attacks 9 | . . 9 . . . . Total Damage 147 | . . 147 . . . . Kills 3 | . . 3 . . . . Allies Corrupted . | . . . . . . . Allies Melted . | . . . . . . . Intel | -11 -10 -10 -10 -9 -8 -8 ------- Run | Yrd Mat Min Exi Min Mat Gar Robot Analysis Total 2 | . 2 . . . . . Derelict Logs Recovered 1 | . . 1 . . . . Drone Launches . | . . . . . . . Drone Recoveries . | . . . . . . . Exploration | -11 -10 -10 -10 -9 -8 -8 ------------- Run | Yrd Mat Min Exi Min Mat Gar Turns Passed 5237 | 121 1146 411 559 488 1478 1034 Spaces Moved 2506 | 58 617 243 383 257 607 341 Core 5 | 4 . . . . 1 . Treads 171 | . 2 . . . . 169 Legs 134 | . . . . . 134 . Wheels 2196 | 54 615 243 383 257 472 172 Hover . | . . . . . . . Flight . | . . . . . . . Fastest Speed 50 | 50 80 140 140 135 110 170 Average Speed 157 | 96 128 151 140 150 158 247 Slowest Speed 1550 | 100 240 155 140 215 1550 326 Overloaded Moves . | . . . . . . . Propulsion Burnouts . | . . . . . . . Robots Hopped . | . . . . . . . Cave-ins Triggered . | . . . . . . . Exploration Rate (%) 53 | 6 76 54 71 55 61 49 Regions Visited 6 Branch Regions 3 Pre-discovered Areas 4 | . 1 1 1 . 1 . Known Exits Taken 1 | . . . . . 1 . Unknown Exits Taken 5 | 1 1 1 1 1 . . Scrap Searched 3 | . . 1 . 2 . . Spaces Dug 53 | . . . . . . 53 Terrain Destroyed 173 | . 1 . . 35 9 128 Melee . | . . . . . . . Projectile 19 | . . . . . . 19 AOE 154 | . 1 . . 35 9 109 Terrain Rammed . | . . . . . . . Walls Destroyed . | . . . . . . . Machines Disabled . | . . . . . . . Actions | -11 -10 -10 -10 -9 -8 -8 --------- Run | Yrd Mat Min Exi Min Mat Gar Total 3260 | 97 795 268 408 313 924 455 Wait 154 | 10 20 7 1 13 84 19 Move 2500 | 57 616 242 382 256 606 341 Hop . | . . . . . . . Pick Up 71 | 6 18 2 5 4 30 6 Fast Attach 44 | 8 6 1 2 2 25 . Attach 26 | . 4 1 2 3 11 5 Detach 5 | 1 . . . . 3 1 Swap 24 | 2 10 1 1 4 6 . Drop 65 | . 15 3 11 4 29 3 Fire 347 | 13 106 10 . 27 130 61 Melee 4 | . . . 4 . . . Ram . | . . . . . . . Kick . | . . . . . . . Crush . | . . . . . . . Escape Stasis 19 | . . . . . . 19 Rewire . | . . . . . . . Trap 1 | . . 1 . . . . Miscellaneous . | . . . . . . . Route ------- -11/Scrapyard -10/Materials (discovered 3 exits: [*Mat x2] / [*Min]) -10/Mines (discovered 2 exits: [*Mat] / *Exi) -10/Exiles (discovered 2 exits: [*Min x2]) -9/Mines -8/Materials -8/Garrison (discovered 1 exit: [*Fac]) History --------- Turn | Location | Event 18 | -11/Scrapyard | Discovered new exit (range 15) 122 | -11/Scrapyard | Entered Materials 313 | -10/Materials | Build established: Mutant 353 | -10/Materials | Discovered new exit (range 10) 583 | -10/Materials | Discovered new exit (range 15) 914 | -10/Materials | Discovered new exit (range 15) 945 | -10/Materials | Central database locked down 1049 | -10/Materials | Core integrity fell below 50% 1268 | -10/Materials | Entered Mines 1301 | -10/Mines | Learned location of Zion (-6) 1318 | -10/Mines | Found a hidden stash of uninstalled traps 1421 | -10/Mines | Received a Rocket Launcher from a helpful Derelict 1424 | -10/Mines | Discovered new exit (range 4) 1488 | -10/Mines | Deemed a non-threat by the Exiles lab entrance 1488 | -10/Mines | Discovered new exit (range 5) 1578 | -10/Mines | System corruption reached 10% 1679 | -10/Mines | Entered Exiles 1679 | -10/Exiles | Accompanied by 2 allies 1699 | -10/Exiles | Discovered new exit (range 15) 1709 | -10/Exiles | Led the pair of lost Derelicts to a safe place 1715 | -10/Exiles | Met 8R-AWN 1838 | -10/Exiles | Met EX-HEX 1904 | -10/Exiles | Met EX-DEC 1978 | -10/Exiles | Met EX-BIN 2005 | -10/Exiles | Aligned with FarCom system 2006 | -10/Exiles | Given EX-Vault access code 2010 | -10/Exiles | Build established: Scavenger-Mutant 2038 | -10/Exiles | Opened EX-Vault 2047 | -10/Exiles | Found Field Lobotomy Kit 2060 | -10/Exiles | Found XL Autogun Array 2064 | -10/Exiles | Found Modified TNC 2092 | -10/Exiles | Warned to stay clear of 0b10 Research branches 2225 | -10/Exiles | Discovered new exit (range 10) 2238 | -10/Exiles | Stole three prototypes: Modified TNC, XL Autogun Array, Field Lobotomy Kit 2238 | -10/Exiles | Entered Mines 2536 | -9/Mines | Build established: Mutant 2666 | -9/Mines | Assembled infested the area 2680 | -9/Mines | Discovered new exit (range 14) 2684 | -9/Mines | Core integrity fell below 20% 2715 | -9/Mines | Lost 3 parts (3n) 2719 | -9/Mines | Destroyed 7 combat bots 2726 | -9/Mines | Entered Materials 2726 | -8/Materials | Evolved 4 slots: Propulsion x2, Utility x2 3073 | -8/Materials | Lost 6 parts (3n1u2w) 3162 | -8/Materials | Repaired Lgt. Deuterium Engine 3387 | -8/Materials | Core integrity fell below 50% 3408 | -8/Materials | Lost 11 parts (1p4n3u3w) 3757 | -8/Materials | Core integrity fell below 20% 3765 | -8/Materials | Lost 4 parts (1p3n) 3799 | -8/Materials | Destroyed 8 combat bots 4100 | -8/Materials | Build established: Scavenger-Mutant 4199 | -8/Materials | Identified exit to Garrison 4204 | -8/Materials | Entered Garrison 4224 | -8/Garrison | Triggered checkpoint 4538 | -8/Garrison | Triggered checkpoint 4608 | -8/Garrison | Lost 3 parts (2n1u) 4626 | -8/Garrison | Destroyed 7 combat bots 4678 | -8/Garrison | Discovered new exit (range 9) 4784 | -8/Garrison | Triggered checkpoint 5238 | -8/Garrison | Destroyed by Y-45 Defender with Heavy Assault Rifle Last Messages --------------- 05126_ G-50 Soldier destroyed. 05134_ Critical hit (Burn: +37). 05134_ Destroyed Aluminum Leg. 05134_ G-47 Trooper destroyed. 05137_ Acquired 48 matter. 05140_ Acquired 18 matter. 05150_ Acquired 35 matter. 05156_ Acquired 6 matter. 05201_ Triggered Alarm Trap. 05201_ An alarm sounds. 05219_ Slug penetrates Y-45 Defender. 05221_ Critical hit (Burn: +37). 05227_ Y-45 Defender suffers critical hit (Blast). 05227_ Destroyed Heat Sink. 05232_ Y-45 Defender destroyed. 05233_ Critical hit (Burn: +37). 05236_ Disposable Heat Sink melts away. 05237_ Slug penetrates Y-45 Defender. 05237_ Destroyed Lgt. Armor Plating. Map ----- +----------------------------------------------------+ | ??????###### "????????????????????? | | ######### # "????????????????????? | | # # ## "????????????????????? | | # # # ### ## ## #????????????????????? | | #### #### ## #" ## #######??????????????? | | ?## ?????????????? | | ?# # ?????????????? | | ?# # ### "#???????????????????? | | ?### ### ####### #######???????????????????? | | # ## #### #?????# #?# #?????????????????????? | | ### ### ##?????####"#?# #?????????????????????? | | ## #######??????# ### #?????????????????????? | | #????# [=#?????????????????????? | | ###########????##### #?????????????????????? | | ## # # # #????????????# #?????????????????????? | | ?## ## # # #????????????# #?????????????????????? | | ??# # # ##????????????# #?????????????????????? | | ??# # # #?????????????# #### #????????????????? | | ??# ### # #?????????????# #?????C??????????? | | ??# #?? ###?????????????# ######????????????????? | | ??# #??# #???????????????# #?????????????????????? | | ??# #??? #???????????##?## #?????????????????????? | | ??# #??? #???????????# ##%#####T#????????????????? | | ??# #??? #????????????#;%Y! "??????????????? | | ??# #????#??????????####Y%;######????????????????? | | ??# #????????######## ;! @#??????????????????????? | | ??# #????????#"""""####! !#??????????????????????? | | ??# ########### ###?#! !#??????????????????????? | | ??# == [ "#?#! !#??????????????????????? | | ??#######= ######"##?## ##??????????????????????? | | ????????# #????###???# #???????????????????????? | | ????????#####?????????? ???????????????????????? | | ???????????????????????" "???????????????????????? | | ???????????????????????" "???????????????????????? | | ??????????????????????#" "???????????????????????? | | ???????????????????????"""???????????????????????? | | ???????????????????????##????????????????????????? | | ?????????????????????????????????????????????????? | | ?????????????????????????????????????????????????? | | ?????????????????????????????????????????????????? | | ?????????????????????????????????????????????????? | | ?????????????????????????????????????????????????? | | ?????????????????????????????????????????????????? | | ?????????????????????????????????????????????????? | | ?????????????????????????????????????????????????? | | ?????????????????????????????????????????????????? | | ?????????????????????????????????????????????????? | | ?????????????????????????????????????????????????? | | ?????????????????????????????????????????????????? | | ?????????????????????????????????????????????????? | +----------------------------------------------------+ Best States ------------- Heat Dissipation 45 Coolant Potential 50 Energy Generation 18 Energy Capacity 290 Matter Stores 300 Matter Capacity 300 Sight Range 16 Robot Scan Range 15 Terrain Scan Range 16 Terrain Scan Density 10 Armor Coverage 600 Utility Shielding 66 Evasion (%) 44 Targeting Accuracy 8 Recoil Reduction 3 Offensive Hacking 10 Item Schematics ----------------- Lrg. Storage Unit | -10/Materials | Hacked Hcp. Storage Unit | -10/Materials | Hacked Robot Schematics ------------------ M-13 Machinist | -10/Materials | Hacked Fabricated ------------ Nothing Alien Tech Used ----------------- None Achievements -------------- None Challenges ------------ None Game ------ Seed HybridFrostChronowheel Manual? 0 Play Time 00:42:06 Cumulative 729.1 hours Start 2024.05.18 @ 14:03:15 End 2024.05.18 @ 14:43:59 Sessions 1 Manual Loads 0 Difficulty Rogue Special Mode None Game No. 298 Rogue 268 Adventurer 3 Explorer 27 Win Type - Total 16 Types 10/3/1/1/0/1/0/0/0 Lore% 91 Gallery% 96 Achievement% 85 Wizard Run 0 Options --------- Layout 2 ASCII 0 Keyboard 0 Movement Numpad Keybinds 0 Fullscreen 2 Font 24/Smallcaps Map View 50x44 Zoom Use 0% Tactical HUD 1 Map Filters NONE Filters NONE Steam 1 RUN: 94b42614-ec54-4ce7-b80a-de9cd0535d67